bitfinex/quotes_SOLUSD_20250811
["timestamp","ask_amount","ask_price","bid_price","bid_amount"]
[1754881472238,49.07068779,184.9,184.88,0.06]
[1754881474356,10.9109389,184.89,184.88,0.06]
[1754881475543,5.50231756,184.89,184.88,0.06]
[1754881476045,0.69,184.89,184.88,0.06]
[1754881476220,5.50231756,184.89,184.88,0.06]
[1754881476921,10.9109389,184.89,184.88,0.06]
[1754881477819,43.08890977,184.89,184.88,0.06]
[1754881479532,39.0776099,184.89,184.88,0.06]
[1754881479926,54.18382547,184.89,184.88,0.06]
[1754881482254,28.18382547,184.89,184.88,0.06]
[1754881482928,28.18382547,184.89,184.88,1e-08]
[1754881483239,15.10621557,184.86,184.82,0.06]
[1754881483560,4.81231756,184.83,184.82,0.06]
[1754881483737,42.99231756,184.83,184.82,0.06]
[1754881483938,49.09269466,184.83,184.82,0.06]
[1754881486965,10.91269466,184.83,184.82,0.06]
[1754881487347,49.09269466,184.83,184.82,0.06]
[1754881487553,10.91269466,184.83,184.82,0.06]
[1754881487870,49.09269466,184.83,184.82,0.06]
[1754881488946,58.26399866,184.83,184.82,0.06]
[1754881489278,48.40269466,184.83,184.82,0.06]
[1754881489636,49.09269466,184.83,184.81,1e-08]
[1754881489841,36.2229874,184.82,184.81,1e-08]
[1754881490059,30.83152053,184.82,184.81,1e-08]
[1754881490263,30.83152053,184.82,184.72,0.69]
[1754881490264,4.81231756,184.73,184.67,0.69]
[1754881490448,42.99231756,184.72,184.68,0.69]
[1754881490641,38.18,184.72,184.68,0.69]
[1754881490844,4.81231756,184.74,184.68,5.50231756]
[1754881491039,38.18,184.73,184.69,0.69]
[1754881491261,4.81231756,184.72,184.7,0.69]
[1754881491445,38.18,184.71,184.7,0.69]
[1754881491846,38.18,184.71,184.7,6.10418516]
[1754881492065,42.99231756,184.71,184.67,0.69]
[1754881492377,38.18,184.71,184.68,0.69]
[1754881492545,38.18,184.71,184.69,0.69]
[1754881492846,38.18,184.7,184.66,18.95375283]
[1754881493050,38.18,184.7,184.66,23.76607039]
[1754881493266,38.18,184.7,184.67,0.69]
[1754881493978,38.18,184.7,184.68,5.41477149]
[1754881494186,38.18,184.7,184.69,0.69]
[1754881494352,4.81231756,184.72,184.69,0.69]
[1754881494546,38.2,184.71,184.69,0.69]
[1754881494749,4.81231756,184.72,184.69,0.69]
[1754881494942,38.2,184.7,184.69,6.10447831]
[1754881495247,4.81231756,184.7,184.67,0.69]
[1754881495445,38.2,184.7,184.68,5.50231756]
[1754881495656,5.50231756,184.74,184.69,0.69]
[1754881495851,38.2,184.73,184.69,4.81231756]
[1754881496078,38.2,184.73,184.69,0.69]
[1754881496370,4.81231756,184.74,184.7,0.69]
[1754881496371,38.2,184.72,184.7,0.69]
[1754881496671,38.2,184.72,184.7,5.50231756]
[1754881496869,38.2,184.72,184.71,5.41389204]
[1754881497172,38.2,184.72,184.71,6.10389204]
[1754881497880,38.2,184.72,184.69,0.69]
[1754881498265,43.01231756,184.72,184.68,5.41477149]
[1754881498441,38.2,184.72,184.69,0.69]
[1754881499669,38.2,184.71,184.7,0.67]
[1754881500064,38.2,184.71,184.7,5.48231756]
[1754881500268,4.81231756,184.76,184.7,5.48231756]
[1754881500467,4.81231756,184.72,184.67,0.67]
[1754881500675,43.01231756,184.71,184.67,0.67]
[1754881501183,43.01231756,184.71,184.63,15.10621557]
[1754881501184,5.51231756,184.7,184.65,0.67]
[1754881501359,38.9,184.71,184.66,4.81231756]
[1754881501560,43.71231756,184.71,184.67,0.67]
[1754881501756,43.01231756,184.71,184.67,0.67]
[1754881501983,38.2,184.71,184.67,0.67]
[1754881502281,43.01231756,184.71,184.67,0.67]
[1754881502582,43.71231756,184.71,184.67,0.67]
[1754881502958,5.51231756,184.7,184.65,10.89796879]
[1754881503183,5.51231756,184.7,184.66,0.67]
[1754881503355,5.51231756,184.7,184.64,10.22824646]
[1754881503570,5.51231756,184.69,184.64,10.89824646]
[1754881503754,38.2,184.68,184.65,0.67]
[1754881503950,4.81231756,184.66,184.63,0.67]
[1754881504158,4.81231756,184.67,184.64,0.67]
[1754881504370,4.81231756,184.67,184.62,0.67]
[1754881504562,4.81231756,184.67,184.63,0.67]
[1754881504985,4.81231756,184.67,184.63,6.08599707]
[1754881505165,4.81231756,184.66,184.62,5.41651383]
[1754881505487,4.81231756,184.67,184.63,0.67]
[1754881505785,5.51231756,184.67,184.63,0.67]
[1754881505963,5.51231756,184.67,184.62,5.41651383]
[1754881506282,4.81231756,184.66,184.62,6.08651383]
[1754881506595,4.81231756,184.65,184.62,0.67]
[1754881506771,5.51231756,184.66,184.62,0.67]
[1754881506973,69.61479075,184.68,184.59,0.67]
[1754881506974,4.81231756,184.64,184.59,0.67]
[1754881507182,5.51231756,184.64,184.59,0.67]
[1754881507392,4.81231756,184.64,184.59,0.67]
[1754881507700,4.81231756,184.61,184.57,0.67]
[1754881507897,4.81231756,184.61,184.53,5.41915996]
[1754881508193,4.81231756,184.61,184.55,4.81231756]
[1754881508391,0.7,184.6,184.54,0.67]
[1754881508614,4.81231756,184.57,184.52,15.77621557]
[1754881508774,4.81231756,184.58,184.53,5.48231756]
[1754881509102,0.7,184.62,184.58,5.41770506]
[1754881509275,15.10621557,184.68,184.58,10.90002262]
[1754881509276,38.28,184.6,184.58,10.90002262]
[1754881509475,38.3,184.63,184.59,0.67]
[1754881509800,38.3,184.63,184.58,18.96196771]
[1754881509963,38.3,184.63,184.6,0.67]
[1754881510162,38.3,184.63,184.58,5.41770506]
[1754881510163,39.0,184.63,184.58,6.08770506]
[1754881510364,38.3,184.63,184.6,4.81231756]
[1754881510600,0.7,184.65,184.61,0.67]
[1754881510805,4.81231756,184.63,184.58,18.96196771]
[1754881510987,4.81231756,184.63,184.58,5.41770506]
[1754881511179,5.51231756,184.63,184.58,10.90002262]
[1754881511397,0.7,184.63,184.58,23.77428527]
[1754881511612,5.51231756,184.63,184.58,23.77428527]
[1754881511770,4.81231756,184.63,184.58,19.63196771]
[1754881512078,5.51231756,184.63,184.58,24.44428527]
[1754881512404,15.44693258,184.66,184.59,0.67]
[1754881512704,38.34,184.64,184.61,4.81231756]
[1754881512869,5.51231756,184.63,184.58,18.96196771]
[1754881513068,0.7,184.62,184.58,18.96196771]
[1754881513269,4.81231756,184.6,184.56,5.4180361]
[1754881513487,4.81231756,184.58,184.55,5.41852442]
[1754881513877,5.51231756,184.59,184.55,5.41852442]
[1754881514090,4.81231756,184.57,184.53,6.08900447]
[1754881514298,5.51231756,184.57,184.53,5.41900447]
[1754881515073,0.7,184.56,184.52,5.41946672]
[1754881515302,0.7,184.55,184.51,6.08973892]
[1754881515602,5.51231756,184.54,184.5,5.48001849]
[1754881515779,4.81231756,184.53,184.5,5.48001849]
[1754881515991,5.51231756,184.54,184.5,5.48001849]
[1754881516203,0.7,184.54,184.5,5.48001849]
[1754881516521,4.81231756,184.51,184.5,0.06]
[1754881516715,43.93231756,184.51,184.5,0.06]
[1754881518486,5.51231756,184.51,184.5,0.06]
[1754881518685,43.99231756,184.51,184.5,0.06]
[1754881518905,39.18,184.51,184.5,0.06]
[1754881519107,43.99231756,184.51,184.5,0.06]
[1754881519584,49.412078,184.51,184.5,0.06]
[1754881520687,38.56,184.51,184.5,0.06]
[1754881520886,38.58,184.51,184.5,0.06]
[1754881521086,0.7,184.53,184.5,0.06]
[1754881521285,38.6,184.53,184.5,0.73]
[1754881521985,38.6,184.53,184.5,0.06]
[1754881522312,4.81231756,184.54,184.5,0.73]
[1754881522478,4.81231756,184.51,184.5,0.06]
[1754881522681,4.81231756,184.52,184.5,0.06]
[1754881522893,38.6,184.53,184.5,0.06]
[1754881523093,43.41231756,184.53,184.5,0.06]
[1754881523287,44.11231756,184.53,184.5,0.06]
[1754881523923,38.6,184.53,184.5,0.06]
[1754881524090,43.41231756,184.53,184.5,0.06]
[1754881524290,4.81231756,184.51,184.5,0.06]
[1754881524719,31.51231756,184.51,184.5,0.06]
[1754881525722,46.61853313,184.51,184.5,0.06]
[1754881525931,5.4200542,184.5,184.4,6.09293116]
[1754881526125,39.3,184.49,184.4,10.90524872]
[1754881526415,4.81231756,184.43,184.4,0.67]
[1754881526622,43.41231756,184.44,184.4,6.09297905]
[1754881526821,38.6,184.44,184.4,5.42297905]
[1754881526992,4.81231756,184.43,184.38,6.09333491]
[1754881527191,4.81231756,184.42,184.38,6.09333491]
[1754881527502,4.81231756,184.42,184.38,0.67]
[1754881527706,4.81231756,184.43,184.37,5.42380488]
[1754881527906,4.81231756,184.43,184.39,0.67]
[1754881528328,4.81231756,184.43,184.39,6.09311032]
[1754881528628,4.81231756,184.42,184.37,0.67]
[1754881528936,5.51231756,184.43,184.37,5.48231756]
[1754881529235,5.51231756,184.43,184.37,0.67]
[1754881529536,0.7,184.42,184.37,4.81231756]
[1754881529825,4.81231756,184.42,184.34,18.98665508]
[1754881530035,5.52231756,184.41,184.37,5.4238759]
[1754881530218,5.52231756,184.4,184.35,4.81231756]
[1754881530388,4.81231756,184.42,184.37,4.81231756]
[1754881530713,44.20231756,184.48,184.41,4.81231756]
[1754881530901,44.20231756,184.48,184.43,4.81231756]
[1754881531101,44.20231756,184.48,184.44,0.66]
[1754881531102,38.68,184.48,184.44,0.66]
[1754881531303,44.20231756,184.48,184.43,4.81231756]
[1754881531517,44.20231756,184.48,184.43,0.66]
[1754881531903,4.81231756,184.47,184.43,0.66]
[1754881532108,44.20231756,184.48,184.44,5.42181739]
[1754881532306,43.49231756,184.48,184.44,5.42181739]
[1754881532497,43.49231756,184.48,184.42,10.23472293]
[1754881532498,0.71,184.47,184.42,10.23472293]
[1754881532705,5.52231756,184.46,184.42,5.42240537]
[1754881533118,0.71,184.46,184.42,10.23472293]
[1754881533417,38.68,184.48,184.43,5.47231756]
[1754881533627,44.20231756,184.48,184.43,0.66]
[1754881534123,38.68,184.48,184.44,6.08181739]
[1754881534320,7.64544197,184.46,184.39,0.66]
[1754881534527,8.35544197,184.46,184.41,7.64544197]
[1754881534724,0.71,184.45,184.41,7.64544197]
[1754881535225,8.35544197,184.44,184.4,5.42299349]
[1754881535407,38.72,184.46,184.34,28.66747651]
[1754881535408,7.64544197,184.41,184.36,7.64544197]
[1754881535614,8.35544197,184.41,184.36,8.30544197]
[1754881535825,0.71,184.46,184.4,7.64544197]
[1754881536134,46.36544197,184.45,184.4,7.64544197]
[1754881536431,0.71,184.44,184.39,8.30544197]
[1754881536728,7.64544197,184.43,184.4,5.42298323]
[1754881536940,7.64544197,184.41,184.38,5.42358173]
[1754881537225,8.35544197,184.41,184.38,5.42358173]
[1754881537424,0.71,184.41,184.37,5.42380625]
[1754881537732,8.35544197,184.41,184.37,5.42380625]
[1754881537902,7.64544197,184.42,184.37,13.72924822]
[1754881538104,7.64544197,184.42,184.34,13.5616436]
[1754881538105,7.64544197,184.4,184.34,0.66]
[1754881538406,7.64544197,184.4,184.34,6.08475859]
[1754881538603,47.09544197,184.41,184.35,7.64544197]
[1754881538806,47.09544197,184.41,184.34,6.08475859]
[1754881539011,8.35544197,184.4,184.34,13.73020056]
[1754881539724,38.74,184.41,184.36,7.64544197]
[1754881539910,0.71,184.4,184.34,5.42475859]
[1754881540237,0.71,184.4,184.34,13.07020056]
[1754881540524,0.71,184.4,184.36,7.64544197]
[1754881540697,38.74,184.41,184.35,0.66]
[1754881540903,38.74,184.41,184.38,7.64544197]
[1754881541127,38.74,184.41,184.38,0.66]
[1754881541315,38.74,184.41,184.39,5.42328759]
[1754881541900,0.71,184.41,184.37,13.06931787]
[1754881542104,46.40544197,184.43,184.37,13.06931787]
[1754881542403,47.11544197,184.43,184.37,13.72931787]
[1754881542812,47.11544197,184.43,184.37,6.0838759]
[1754881543133,8.35544197,184.42,184.37,13.06931787]
[1754881543338,7.64544197,184.39,184.33,10.95130381]
[1754881543537,7.64544197,184.34,184.33,10.95130381]
[1754881543836,7.64544197,184.37,184.33,11.61130381]
[1754881544008,8.35544197,184.37,184.33,10.95130381]
[1754881544208,0.71,184.36,184.33,10.95130381]
[1754881544626,7.64544197,184.37,184.33,16.37632181]
[1754881544938,0.71,184.36,184.33,10.95130381]
[1754881545105,0.71,184.38,184.33,10.95130381]
[1754881545314,7.64544197,184.36,184.33,10.95130381]
[1754881545513,7.64544197,184.35,184.33,10.95130381]
[1754881546124,8.35544197,184.36,184.33,10.95130381]
[1754881546530,38.76,184.39,184.33,10.95130381]
[1754881546751,44.18335757,184.39,184.33,10.95130381]
[1754881546928,7.64544197,184.37,184.33,10.95130381]
[1754881547420,7.64544197,184.36,184.33,10.95130381]
[1754881547822,6.13391019,184.37,184.33,10.95130381]
[1754881547823,0.71,184.37,184.33,10.95130381]
[1754881548129,8.35544197,184.37,184.33,10.95130381]
[1754881548329,8.35544197,184.37,184.33,16.37631562]
[1754881548845,0.71,184.37,184.33,17.03631562]
[1754881549040,8.35544197,184.37,184.33,17.03631562]
[1754881549439,34.1701814,184.41,184.33,17.03631562]
[1754881549637,7.64544197,184.37,184.33,17.03631562]
[1754881550148,38.8,184.38,184.33,17.03631562]
[1754881550351,38.8,184.38,184.34,0.66]
[1754881550522,38.8,184.38,184.35,0.66]
[1754881550959,38.8,184.38,184.33,24.68175759]
[1754881551160,38.8,184.38,184.33,16.37631562]
[1754881551458,0.71,184.37,184.33,16.37631562]
[1754881551628,0.71,184.37,184.33,17.03631562]
[1754881551822,46.44544197,184.38,184.33,17.03631562]
[1754881552022,47.15544197,184.38,184.33,17.03631562]
[1754881552239,39.51,184.38,184.33,17.03631562]
[1754881552446,47.15544197,184.38,184.34,0.66]
[1754881552651,7.64544197,184.35,184.33,10.95130381]
[1754881552823,8.35544197,184.35,184.33,10.95130381]
[1754881553022,0.71,184.35,184.33,10.95130381]
[1754881553437,0.71,184.35,184.33,16.37624279]
[1754881553661,7.64544197,184.36,184.33,16.37624279]
[1754881553834,7.64544197,184.36,184.33,10.95130381]
[1754881554040,0.71,184.35,184.33,16.37631821]
[1754881554355,38.8,184.38,184.33,10.95130381]
[1754881554521,8.35544197,184.35,184.33,10.95130381]
[1754881554721,7.64544197,184.34,184.33,10.95130381]
[1754881554920,8.35544197,184.34,184.33,10.95130381]
[1754881555122,47.15544197,184.34,184.33,10.95130381]
[1754881555539,60.22564253,184.34,184.33,10.95130381]
[1754881555720,39.51,184.34,184.33,10.95130381]
[1754881556073,44.93475859,184.34,184.33,10.95130381]
[1754881556607,39.51,184.34,184.33,10.95130381]
[1754881556861,43.66156362,184.34,184.33,10.95130381]
[1754881557153,44.37156362,184.34,184.33,10.95130381]
[1754881557523,39.51,184.34,184.33,10.95130381]
[1754881557726,44.37156362,184.34,184.33,10.95130381]
[1754881558173,47.1687327,184.34,184.33,10.95130381]
[1754881559356,52.59349129,184.34,184.33,10.95130381]
[1754881560248,64.23054021,184.34,184.33,10.95130381]
[1754881560973,26.0,184.32,184.31,0.06]
[1754881561299,55.41221826,184.32,184.21,0.67]
[1754881561451,26.0,184.28,184.21,0.67]
[1754881561656,26.0,184.28,184.21,6.09854616]
[1754881561657,7.6587327,184.25,184.21,6.09854616]
[1754881561866,39.14,184.27,184.22,0.67]
[1754881562054,7.6587327,184.26,184.23,0.67]
[1754881562376,39.18,184.26,184.24,0.67]
[1754881562555,0.65,184.31,184.25,0.67]
[1754881562755,39.2,184.3,184.23,0.67]
[1754881562976,7.6587327,184.24,184.2,0.67]
[1754881563185,0.65,184.29,184.2,0.67]
[1754881563186,7.6587327,184.21,184.2,0.67]
[1754881563383,39.22,184.25,184.18,0.67]
[1754881563384,39.22,184.23,184.18,0.67]
[1754881563551,7.6587327,184.21,184.2,0.67]
[1754881563857,39.22,184.23,184.2,0.67]
[1754881564262,7.6587327,184.22,184.2,0.67]
[1754881565074,7.6587327,184.21,184.17,4.92976597]
[1754881565371,39.22,184.23,184.18,0.67]
[1754881565372,7.6587327,184.2,184.18,0.67]
[1754881565589,39.87,184.23,184.18,0.67]
[1754881565751,0.65,184.22,184.18,0.67]
[1754881565954,7.6587327,184.21,184.18,0.67]
[1754881566154,39.22,184.23,184.18,6.09945786]
[1754881566365,7.6587327,184.21,184.18,6.09945786]
[1754881566556,39.87,184.23,184.18,6.09945786]
[1754881566755,39.3,184.23,184.2,7.6587327]
[1754881567076,47.0587327,184.24,184.21,0.67]
[1754881567466,47.0587327,184.24,184.19,0.67]
[1754881567780,39.4,184.24,184.2,0.67]
[1754881567974,47.0587327,184.24,184.2,0.67]
[1754881568350,39.4,184.24,184.2,0.67]
[1754881568576,7.6587327,184.23,184.2,0.67]
[1754881569054,39.4,184.24,184.2,0.67]
[1754881569374,7.6587327,184.21,184.17,0.67]
[1754881569564,47.0987327,184.2,184.15,13.75908838]
[1754881569766,47.0987327,184.2,184.15,13.08908838]
[1754881569964,7.6587327,184.19,184.15,0.67]
[1754881570162,7.6587327,184.19,184.14,7.8587327]
[1754881570369,7.6587327,184.18,184.14,0.87]
[1754881570568,7.6587327,184.18,184.14,6.3005925]
[1754881570778,8.3087327,184.19,184.14,6.3005925]
[1754881570980,0.65,184.19,184.14,6.3005925]
[1754881571277,7.6587327,184.16,184.14,0.2]
[1754881571480,47.0987327,184.16,184.14,0.2]
[1754881571683,39.44,184.16,184.14,0.2]
[1754881571858,39.44,184.16,184.14,5.63055816]
[1754881572181,39.44,184.16,184.14,0.87]
[1754881572353,39.44,184.16,184.14,6.30058754]
[1754881572752,0.65,184.22,184.15,8.3287327]
[1754881573064,0.65,184.22,184.14,0.2]
[1754881573065,6.07840512,184.22,184.14,0.2]
[1754881573270,40.15,184.21,184.14,0.2]
[1754881573477,26.65,184.22,184.16,7.6587327]
[1754881573778,47.1587327,184.21,184.16,6.10000254]
[1754881573979,0.65,184.2,184.14,6.30036838]
[1754881574180,0.65,184.2,184.15,8.3287327]
[1754881574181,39.5,184.19,184.15,8.3287327]
[1754881574383,39.5,184.19,184.16,0.67]
[1754881574681,39.5,184.19,184.17,0.67]
[1754881574886,39.5,184.19,184.14,19.20699485]
[1754881575177,47.8087327,184.19,184.14,13.95910108]
[1754881575382,8.3087327,184.18,184.14,5.63036838]
[1754881575582,7.6587327,184.15,184.14,0.2]
[1754881575755,7.6587327,184.15,184.14,13.95938329]
[1754881575756,39.52,184.15,184.14,13.95938329]
[1754881575952,39.52,184.15,184.14,5.63065059]
[1754881577071,39.52,184.15,184.14,6.30065059]
[1754881577383,26.0,184.21,184.14,13.95938329]
[1754881577590,39.52,184.2,184.16,13.08879351]
[1754881577757,40.17,184.19,184.14,5.63042915]
[1754881577955,7.6587327,184.16,184.14,5.63060353]
[1754881578156,8.3087327,184.16,184.14,5.63060353]
[1754881578376,39.52,184.15,184.14,5.63060353]
[1754881578758,39.52,184.15,184.14,13.95933623]
[1754881578971,0.65,184.21,184.14,27.5359627]
[1754881579156,39.54,184.2,184.16,7.6587327]
[1754881579371,39.54,184.2,184.16,0.67]
[1754881579569,0.65,184.19,184.16,5.43006081]
[1754881579762,39.54,184.2,184.17,8.3287327]
[1754881580282,39.54,184.2,184.16,13.08879351]
[1754881580476,39.54,184.2,184.16,13.75879351]
[1754881580654,40.19,184.2,184.16,6.10006081]
[1754881580858,39.54,184.2,184.16,6.10006081]
[1754881581091,39.54,184.2,184.16,5.43006081]
[1754881581259,0.65,184.19,184.16,5.43006081]
[1754881581462,7.6587327,184.17,184.14,0.2]
[1754881581862,7.6587327,184.15,184.14,0.2]
[1754881582177,0.65,184.15,184.14,0.2]
[1754881582765,8.3087327,184.15,184.14,0.2]
[1754881582970,0.65,184.15,184.14,0.2]
[1754881583203,8.3087327,184.15,184.14,0.2]
[1754881583907,13.73908838,184.15,184.14,0.2]
[1754881584094,8.3087327,184.15,184.14,0.2]
[1754881584498,0.65,184.15,184.14,0.2]
[1754881584999,47.1787327,184.16,184.14,0.2]
[1754881585310,47.8287327,184.16,184.14,0.2]
[1754881585679,8.3087327,184.15,184.14,0.2]
[1754881586072,39.52,184.16,184.14,0.2]
[1754881586285,39.52,184.16,184.14,0.87]
[1754881586575,39.52,184.16,184.14,0.2]
[1754881586791,40.17,184.16,184.14,0.2]
[1754881587097,0.65,184.15,184.14,0.2]
[1754881587782,8.3087327,184.15,184.14,0.2]
[1754881587980,8.3087327,184.15,184.04,13.76228965]
[1754881587981,26.0,184.12,184.04,13.76228965]
[1754881588204,7.6587327,184.08,184.04,0.67]
[1754881588372,39.5,184.08,184.02,7.6587327]
[1754881588575,8.3087327,184.07,184.02,7.6587327]
[1754881588774,39.5,184.08,184.03,0.67]
[1754881588775,47.1587327,184.08,184.03,0.67]
[1754881589000,47.8087327,184.08,184.03,8.3287327]
[1754881589403,7.6587327,184.06,184.0,8.3287327]
[1754881589700,39.5,184.08,184.0,8.3287327]
[1754881589701,47.7687327,184.05,184.01,5.43448725]
[1754881589902,7.6587327,184.07,184.01,6.13448725]
[1754881590086,39.46,184.06,184.02,0.7]
[1754881590282,40.16,184.06,184.01,5.43448725]
[1754881590592,47.1187327,184.06,184.01,13.09321995]
[1754881590798,40.16,184.06,184.01,6.13448725]
[1754881590994,0.7,184.05,184.01,6.13448725]
[1754881591195,47.1187327,184.06,184.01,6.13448725]
[1754881591392,47.1187327,184.06,184.01,13.09321995]
[1754881591703,8.3587327,184.05,183.98,14.28788475]
[1754881591874,7.6587327,184.05,184.0,7.6587327]
[1754881592075,39.46,184.06,184.02,7.6587327]
[1754881592276,10.0,184.22,184.05,7.6587327]
[1754881592480,47.7987327,184.16,184.11,7.6587327]
[1754881592786,47.7987327,184.16,184.06,0.7]
[1754881592787,0.7,184.16,184.13,7.6587327]
[1754881593104,0.7,184.2,184.14,0.7]
[1754881593313,8.3587327,184.2,184.07,0.54327158]
[1754881593480,7.6587327,184.16,184.1,7.6587327]
[1754881593681,47.7987327,184.16,184.11,5.43153549]
[1754881593999,40.14,184.16,184.11,13.09026819]
[1754881594719,39.44,184.16,184.12,0.7]
[1754881594882,39.42,184.18,184.12,0.7]
[1754881595082,39.44,184.18,184.15,7.6587327]
[1754881595385,39.44,184.18,184.12,0.7]
[1754881595688,0.7,184.2,184.16,7.6587327]
[1754881595886,40.12,184.2,184.13,0.7]
[1754881596108,0.7,184.19,184.16,7.6587327]
[1754881596319,39.42,184.2,184.13,0.7]
[1754881596619,39.42,184.2,184.16,7.6587327]
[1754881596808,39.42,184.2,184.13,0.7]
[1754881596809,0.03,184.23,184.2,15.10621557]
[1754881597120,0.03,184.23,184.22,7.6587327]
[1754881597580,0.03,184.25,184.23,15.10621557]
[1754881597783,0.03,184.25,184.24,28.19265126]
[1754881598001,0.03,184.25,184.24,6.12770299]
[1754881598281,0.03,184.25,184.24,13.78643569]
[1754881598481,0.03,184.25,184.21,0.7]
[1754881598711,0.03,184.25,184.24,7.6587327]
[1754881599092,0.03,184.25,184.23,7.6587327]
[1754881599403,0.03,184.25,184.24,8.3587327]
[1754881599788,0.03,184.25,184.24,13.78643569]
[1754881600192,0.03,184.25,184.24,6.12770299]
[1754881600390,0.03,184.25,184.24,13.78643569]
[1754881600908,8.3287327,184.25,184.19,0.7]
[1754881601078,8.3287327,184.25,184.19,7.6587327]
[1754881601409,0.67,184.25,184.2,7.6587327]
[1754881601900,0.03,184.25,184.21,6.12858693]
[1754881602114,0.03,184.25,184.22,7.6587327]
[1754881602301,0.03,184.25,184.24,7.6587327]
[1754881602676,0.03,184.25,184.24,8.3587327]
[1754881602881,0.03,184.25,184.21,6.12858693]
[1754881603097,0.03,184.25,184.22,0.7]
[1754881603299,0.67,184.25,184.21,13.08731963]
[1754881603496,0.67,184.25,184.21,5.42858693]
[1754881603894,0.67,184.25,184.21,7.6587327]
[1754881604114,0.64,184.24,184.2,13.08761435]
[1754881604305,0.64,184.24,184.2,5.42888165]
[1754881604508,7.6887327,184.25,184.2,5.42888165]
[1754881604693,0.03,184.25,184.23,7.6587327]
[1754881604894,0.03,184.25,184.23,8.3587327]
[1754881605417,0.03,184.25,184.24,7.6587327]
[1754881605586,0.03,184.25,184.24,8.3587327]
[1754881605786,0.03,184.27,184.25,5.42740841]
[1754881605987,0.03,184.27,184.26,7.6587327]
[1754881606386,17.77516934,184.32,184.27,15.10621557]
[1754881606701,17.77516934,184.32,184.31,7.6587327]
[1754881606908,17.77516934,184.32,184.31,8.3587327]
[1754881607113,17.77516934,184.32,184.31,7.6587327]
[1754881607308,17.77516934,184.32,184.31,8.3587327]
[1754881607607,17.77516934,184.32,184.31,0.7]
[1754881607906,17.77516934,184.32,184.31,13.78437428]
[1754881608287,0.03,184.36,184.35,7.6587327]
[1754881608486,0.03,184.36,184.34,7.6587327]
[1754881609013,0.67,184.36,184.31,26.64847823]
[1754881609507,0.67,184.36,184.31,13.08437428]
[1754881609689,0.67,184.36,184.32,7.6587327]
[1754881609887,0.67,184.36,184.33,5.42505289]
[1754881610100,0.03,184.36,184.33,5.42505289]
[1754881610307,0.03,184.36,184.33,13.08378559]
[1754881610507,0.03,184.36,184.33,13.78378559]
[1754881610710,0.03,184.36,184.33,13.08378559]
[1754881610891,0.03,184.36,184.33,7.6587327]
[1754881611298,0.03,184.36,184.32,7.6587327]
[1754881611601,0.64,184.35,184.3,7.6587327]
[1754881611792,0.64,184.35,184.31,5.42538924]
[1754881611988,7.6587327,184.49,184.35,15.10621557]
[1754881612210,8.3587327,184.48,184.41,7.6587327]
[1754881612414,7.6587327,184.51,184.45,7.6587327]
[1754881612617,7.6587327,184.51,184.38,15.10621557]
[1754881612618,6.14948543,184.52,184.42,15.80621557]
[1754881612796,7.6587327,184.51,184.45,7.6587327]
[1754881613403,6.14960933,184.52,184.43,0.7]
[1754881613404,13.80834203,184.52,184.46,7.6587327]
[1754881614005,13.80834203,184.52,184.45,7.6587327]
[1754881614311,13.80834203,184.52,184.43,0.7]
[1754881614312,7.6587327,184.49,184.43,8.3587327]
[1754881614611,0.7,184.48,184.42,7.6587327]
[1754881615099,0.7,184.48,184.43,7.6587327]
[1754881615297,6.14960933,184.52,184.46,7.6587327]
[1754881615502,7.6587327,184.51,184.45,7.6587327]
[1754881615703,7.6587327,184.5,184.44,8.3587327]
[1754881615899,13.07849314,184.51,184.45,7.6587327]
[1754881616097,5.41976044,184.51,184.46,7.6587327]
[1754881616309,0.03,184.52,184.47,7.6587327]